[Event "RUS-ch Men Blitz 2019"]
[Site "Sochi"]
[Date "2019.10.17"]
[Round "10.23"]
[White "Papenin, Nikolai"]
[Black "Bryakin, Mikhail"]
[Result "1/2-1/2"]
[ECO "A42"]
[WhiteElo "2295"]
[BlackElo "2440"]
[Annotator "NA"]
[PlyCount "118"]
[EventDate "2019.10.17"]
[EventType "swiss"]
[EventCountry "RUS"]
[SourceTitle "playchess.com"]
[Source "ChessBase"]
[SourceQuality "1"]
[TimeControl "180+2"]

1. d4 {[%emt 0:00:00]} g6 {[%emt 0:00:00]} 2. c4 {[%emt 0:00:00]} Bg7 {[%emt 0:00:00]} 3. Nc3 {[%emt 0:00:01]} d6 {[%emt 0:00:00]} 4. e4 {[%emt 0:00:01]} e6 {[%emt 0:00:01]} 5. h4 {[%emt 0:00:06]} h6 {[%emt 0:00:00]} 6. Nge2 {[%emt 0:00:06]} Ne7 {[%emt 0:00:02]} 7. Ng3 {[%emt 0:00:03]} b6 {[%emt 0:00:00]} 8. Be3 {[%emt 0:00:19]} Bb7 {[%emt 0:00:01]} 9. Bd3 {[%emt 0:00:08]} Nd7 {[%emt 0:00:01]} 10. f4 {[%emt 0:00:08]} a6 {[%emt 0:00:15]} 11. h5 {[%emt 0:00:05]} g5 {[%emt 0:00:04]} 12. fxg5 {[%emt 0:00:14]} hxg5 {[%emt 0:00:01]} 13. Qg4 {[%emt 0:00:20]} c5 {[%emt 0:01:05]} 14. d5 {[%emt 0:00:04]} Ne5 {[%emt 0:00:01]} 15. Qe2 {[%emt 0:00:01]} Ng8 {[%emt 0:00:18]} 16. O-O {[%emt 0:00:15]} Nh6 {[%emt 0:00:02]} 17. Qd2 {[%emt 0:00:19]} Nxd3 {[%emt 0:00:06]} 18. Qxd3 {[%emt 0:00:11]} Ng4 {[%emt 0:00:02]} 19. Nce2 {[%emt 0:00:28]} Be5 {[%emt 0:00:17]} 20. Bd2 {[%emt 0:00:05]} Qe7 {[%emt 0:00:06]} 21. Bc3 {[%emt 0:00:08]} O-O-O {[%emt 0:00:01]} 22. Qf3 {[%emt 0:00:02]} Bxc3 {[%emt 0:00:03]} 23. Qxg4 {[%emt 0:00:04]} Be5 {[%emt 0:00:06]} 24. Rab1 {[%emt 0:00:16]} b5 {[%emt 0:00:00]} 25. b4 {[%emt 0:00:01]} Qc7 {[%emt 0:00:18]} 26. cxb5 axb5 {[%emt 0:00:03]} 27. bxc5 {[%emt 0:00:12]} Qxc5+ {[%emt 0:00:01]} 28. Kh1 {[%emt 0:00:02]} Kb8 {[%emt 0:00:01]} 29. Rxf7 {[%emt 0:00:02]} exd5 {[%emt 0:00:03]} 30. Qe6 {[%emt 0:00:11]} Rhe8 {[%emt 0:00:15]} 31. Qg6 {[%emt 0:00:02]} dxe4 {[%emt 0:00:03]} 32. Rc1 {[%emt 0:00:00]} Qb6 {[%emt 0:00:05]} 33. Qh7 {[%emt 0:00:02]} Rh8 34. Qf5 e3 {[%emt 0:00:12]} 35. Rcc7 {[%emt 0:00:05]} Qxc7 {[%emt 0:00:16]} 36. Rxc7 {[%emt 0:00:01]} Kxc7 {[%emt 0:00:00]} 37. Qd3 {[%emt 0:00:01]} Bf4 {[%emt 0:00:07]} 38. Qxb5 {[%emt 0:00:03]} d5 {[%emt 0:00:01]} 39. Qc5+ {[%emt 0:00:05]} Kb8 {[%emt 0:00:01]} 40. Nf5 {[%emt 0:00:04]} Rxh5+ 41. Kg1 Rdh8 {[%emt 0:00:02]} 42. Nfg3 {[%emt 0:00:05]} R5h6 {[%emt 0:00:04]} 43. a4 {[%emt 0:00:01]} Rc6 {[%emt 0:00:03]} 44. Qd4 {[%emt 0:00:02]} Rhc8 {[%emt 0:00:02]} 45. a5 {[%emt 0:00:01]} Rc4 {[%emt 0:00:02]} 46. Qf6 {[%emt 0:00:01]} R8c6 {[%emt 0:00:06]} 47. Qh8+ {[%emt 0:00:01]} Ka7 {[%emt 0:00:00]} 48. Qb2 {[%emt 0:00:04]} d4 {[%emt 0:00:03]} 49. Nxd4 {[%emt 0:00:03]} Rc1+ {[%emt 0:00:02]} 50. Nf1 {[%emt 0:00:02]} R1c5 {[%emt 0:00:12]} 51. Nxc6+ Rxc6 {[%emt 0:00:01]} 52. Qd4+ {[%emt 0:00:03]} Kb8 {[%emt 0:00:03]} 53. Qh8+ {[%emt 0:00:01]} Rc8 {[%emt 0:00:01]} 54. Qb2 {[%emt 0:00:02]} Rc6 {[%emt 0:00:03]} 55. Qh8+ {[%emt 0:00:02]} Rc8 {[%emt 0:00:01]} 56. Qb2 {[%emt 0:00:01]} Rc6 {[%emt 0:00:01]} 57. Qh8+ {[%emt 0:00:01]} Rc8 {[%emt 0:00:05]} 58. Qb2 {[%emt 0:00:01]} Rc6 {[%emt 0:00:03]} 59. Qh8+ {[%emt 0:00:02]} Rc8 {[%emt 0:00:01] Kh2} 1/2-1/2

[Event "RUS-ch Men Blitz 2019"]
[Site "Sochi"]
[Date "2019.10.17"]
[Round "10.24"]
[White "Smagin, Sergey"]
[Black "Oganian, Miran"]
[Result "0-1"]
[ECO "B22"]
[WhiteElo "2551"]
[BlackElo "2436"]
[Annotator "ChessBase"]
[PlyCount "79"]
[EventDate "2019.10.17"]
[EventType "swiss"]
[EventCountry "RUS"]
[SourceTitle "playchess.com"]
[Source "ChessBase"]
[SourceQuality "1"]
[TimeControl "180+2"]

1. e4 {[%emt 0:00:00]} c5 {[%emt 0:00:00]} 2. c3 {[%emt 0:00:00]} Nf6 3. e5 Nd5 {[%emt 0:00:00]} 4. Nf3 {[%emt 0:00:01]} Nc6 {[%emt 0:00:01]} 5. Na3 {[%emt 0:00:01]} d6 {[%emt 0:00:05]} 6. exd6 {[%emt 0:00:01]} Qxd6 {[%emt 0:00:06]} 7. d4 {[%emt 0:00:06]} cxd4 {[%emt 0:00:07]} 8. Nb5 {[%emt 0:00:01]} Qd8 {[%emt 0:00:28]} 9. Nbxd4 {[%emt 0:00:02]} Bd7 {[%emt 0:00:11]} 10. Bc4 {[%emt 0:00:19]} Nb6 {[%emt 0:00:37]} 11. Bb3 {[%emt 0:00:17]} e6 {[%emt 0:00:05]} 12. O-O {[%emt 0:00:02]} Nxd4 {[%emt 0:00:04]} 13. Qxd4 {[%emt 0:00:02]} Bc6 {[%emt 0:00:01]} 14. Qxd8+ {[%emt 0:00:18]} Rxd8 {[%emt 0:00:02]} 15. Ne5 {[%emt 0:00:01]} Be4 {[%emt 0:00:25]} 16. Be3 {[%emt 0:00:01]} Bd6 {[%emt 0:00:03]} 17. Bd4 {[%emt 0:00:26]} Ke7 {[%emt 0:00:31]} 18. Rfe1 {[%emt 0:00:04]} Bd5 {[%emt 0:00:09]} 19. Bxb6 {[%emt 0:00:02]} axb6 {[%emt 0:00:14]} 20. Bxd5 {[%emt 0:00:07]} Bxe5 {[%emt 0:00:03]} 21. Bxb7 {[%emt 0:00:03]} Bf6 {[%emt 0:00:06]} 22. Bf3 {[%emt 0:00:15]} Rd2 {[%emt 0:00:02]} 23. Re2 {[%emt 0:00:06]} Rhd8 {[%emt 0:00:02]} 24. Rxd2 {[%emt 0:00:01]} Rxd2 {[%emt 0:00:00]} 25. Rb1 {[%emt 0:00:01]} g6 {[%emt 0:00:09]} 26. Kf1 {[%emt 0:00:01]} h5 {[%emt 0:00:06]} 27. Ke1 {[%emt 0:00:18]} Bg5 {[%emt 0:00:01]} 28. h4 {[%emt 0:00:09]} Bh6 {[%emt 0:00:01]} 29. g3 {[%emt 0:00:05]} f5 {[%emt 0:00:03]} 30. Be2 {[%emt 0:00:06]} e5 {[%emt 0:00:09]} 31. a4 {[%emt 0:00:20]} e4 {[%emt 0:00:00]} 32. b4 {[%emt 0:00:06]} Ra2 {[%emt 0:00:01]} 33. a5 {[%emt 0:00:26]} Bd2+ {[%emt 0:00:02]} 34. Kf1 {[%emt 0:00:00]} bxa5 {[%emt 0:00:05]} 35. b5 {[%emt 0:00:07]} Kd7 {[%emt 0:00:06]} 36. b6 {[%emt 0:00:08]} Kc8 {[%emt 0:00:01]} 37. Ba6+ {[%emt 0:00:07]} Kb8 {[%emt 0:00:01]} 38. c4 {[%emt 0:00:01]} Bb4 {[%emt 0:00:03]} 39. Rd1 {[%emt 0:00:01]} Rd2 {[%emt 0:00:01]} 40. Rxd2 {[%emt 0:00:08]} 0-1

[Event "RUS-ch Men Blitz 2019"]
[Site "Sochi"]
[Date "2019.10.17"]
[Round "10.25"]
[White "Pogromsky, Mikhail"]
[Black "Airapetian, Gor"]
[Result "1-0"]
[ECO "E04"]
[WhiteElo "2411"]
[BlackElo "2447"]
[Annotator "NA"]
[PlyCount "75"]
[EventDate "2019.10.17"]
[EventType "swiss"]
[EventCountry "RUS"]
[SourceTitle "playchess.com"]
[Source "ChessBase"]
[SourceQuality "1"]
[TimeControl "180+2"]

1. Nf3 {[%emt 0:00:00]} d5 {[%emt 0:00:00]} 2. d4 {[%emt 0:00:00]} Nf6 {[%emt 0:00:00]} 3. c4 {[%emt 0:00:01]} e6 {[%emt 0:00:02]} 4. g3 {[%emt 0:00:01]} dxc4 {[%emt 0:00:02]} 5. Bg2 {[%emt 0:00:02]} Bb4+ {[%emt 0:00:01]} 6. Nc3 {[%emt 0:00:11]} c6 {[%emt 0:00:27]} 7. O-O {[%emt 0:00:15]} Nbd7 {[%emt 0:00:46]} 8. a4 {[%emt 0:00:59]} O-O {[%emt 0:00:07]} 9. Qc2 {[%emt 0:00:19]} Qe7 {[%emt 0:00:15]} 10. Nd2 {[%emt 0:00:09]} e5 {[%emt 0:00:02]} 11. d5 {[%emt 0:00:11]} cxd5 {[%emt 0:00:05]} 12. Nxd5 {[%emt 0:00:01]} Nxd5 {[%emt 0:00:01]} 13. Bxd5 {[%emt 0:00:01]} Nb6 {[%emt 0:00:02]} 14. Be4 {[%emt 0:00:30]} f5 {[%emt 0:00:30]} 15. Bg2 {[%emt 0:00:01]} Be6 {[%emt 0:00:01]} 16. a5 {[%emt 0:00:02]} Nd7 {[%emt 0:00:34]} 17. a6 {[%emt 0:00:09]} Nc5 {[%emt 0:00:02]} 18. axb7 {[%emt 0:00:01]} Nxb7 {[%emt 0:00:03]} 19. Nxc4 {[%emt 0:00:02]} Rac8 {[%emt 0:00:17]} 20. b3 {[%emt 0:00:02]} Nc5 {[%emt 0:00:11]} 21. Rb1 {[%emt 0:00:21]} e4 {[%emt 0:00:02]} 22. Bf4 {[%emt 0:00:05]} Nxb3 {[%emt 0:00:04]} 23. Qxb3 {[%emt 0:00:01]} Bxc4 {[%emt 0:00:01]} 24. Qxb4 {[%emt 0:00:02]} Qxb4 {[%emt 0:00:06]} 25. Rxb4 {[%emt 0:00:01]} Bxe2 {[%emt 0:00:01]} 26. Ra1 {[%emt 0:00:00]} a6 {[%emt 0:00:01]} 27. Bf1 {[%emt 0:00:02]} Bxf1 {[%emt 0:00:07]} 28. Kxf1 {[%emt 0:00:00]} Rc6 {[%emt 0:00:00]} 29. Rb7 {[%emt 0:00:09]} Rf7 {[%emt 0:00:04]} 30. Rb8+ {[%emt 0:00:06]} Rf8 {[%emt 0:00:01]} 31. Rb4 {[%emt 0:00:01]} Rfc8 {[%emt 0:00:03]} 32. Kg2 {[%emt 0:00:02]} Kf7 {[%emt 0:00:01]} 33. Be5 {[%emt 0:00:01]} g6 {[%emt 0:00:02]} 34. Bf4 {[%emt 0:00:01]} Ke6 {[%emt 0:00:01]} 35. Rb7 {[%emt 0:00:00]} h5 {[%emt 0:00:01]} 36. h4 {[%emt 0:00:02]} Kd5 {[%emt 0:00:02]} 37. Ra7 {[%emt 0:00:04]} Kc4 {[%emt 0:00:05]} 38. R7xa6 {[%emt 0:00:01]} 1-0

[Event "RUS-ch Men Blitz 2019"]
[Site "Sochi"]
[Date "2019.10.17"]
[Round "10.26"]
[White "Derjabin, Ilja"]
[Black "Volovich, Vasily"]
[Result "1-0"]
[ECO "E20"]
[WhiteElo "2333"]
[BlackElo "2120"]
[Annotator "NA"]
[PlyCount "98"]
[EventDate "2019.10.17"]
[EventType "swiss"]
[EventCountry "RUS"]
[SourceTitle "playchess.com"]
[Source "ChessBase"]
[SourceQuality "1"]
[TimeControl "180+2"]

1. d4 {[%emt 0:00:00]} e6 {[%emt 0:00:00]} 2. c4 {[%emt 0:00:00]} Nf6 {[%emt 0:00:01]} 3. Nc3 {[%emt 0:00:01]} Bb4 {[%emt 0:00:01]} 4. f3 {[%emt 0:00:00]} d5 {[%emt 0:00:06]} 5. a3 {[%emt 0:00:02]} Bxc3+ {[%emt 0:00:02]} 6. bxc3 {[%emt 0:00:01]} c5 {[%emt 0:00:01]} 7. e3 {[%emt 0:00:01]} O-O {[%emt 0:00:05]} 8. Bd3 {[%emt 0:00:01]} dxc4 {[%emt 0:00:03]} 9. Bxc4 {[%emt 0:00:01]} Qc7 {[%emt 0:00:09]} 10. Bb3 {[%emt 0:00:01]} e5 {[%emt 0:00:10]} 11. d5 {[%emt 0:00:09]} c4 {[%emt 0:00:04]} 12. Bc2 {[%emt 0:00:03]} Qa5 {[%emt 0:00:11]} 13. e4 {[%emt 0:00:05]} Qxc3+ {[%emt 0:00:09]} 14. Bd2 {[%emt 0:00:01]} Qd4 {[%emt 0:00:04]} 15. Ne2 {[%emt 0:00:01]} Qb6 {[%emt 0:00:03]} 16. Rb1 {[%emt 0:00:10]} Qc7 {[%emt 0:00:03]} 17. O-O {[%emt 0:00:07]} b6 {[%emt 0:00:03]} 18. Kh1 {[%emt 0:00:26]} Nbd7 {[%emt 0:00:11]} 19. Nc3 {[%emt 0:00:11]} Nc5 {[%emt 0:00:07]} 20. f4 {[%emt 0:00:04]} Bb7 {[%emt 0:00:48]} 21. Qf3 {[%emt 0:00:15]} Nfd7 {[%emt 0:00:06]} 22. Nb5 {[%emt 0:00:23]} Qb8 {[%emt 0:00:01]} 23. Qg3 {[%emt 0:00:09]} f6 {[%emt 0:00:06]} 24. Nc3 {[%emt 0:00:28]} Qd6 {[%emt 0:00:06]} 25. Nb5 {[%emt 0:00:07]} Qe7 {[%emt 0:00:07]} 26. f5 {[%emt 0:00:23]} a6 {[%emt 0:00:06]} 27. Nc7 {[%emt 0:00:03]} Rac8 {[%emt 0:00:11]} 28. Ne6 {[%emt 0:00:01]} Rf7 {[%emt 0:00:07]} 29. Be3 {[%emt 0:00:07]} Kh8 {[%emt 0:00:06]} 30. Nxc5 {[%emt 0:00:07]} Nxc5 {[%emt 0:00:03]} 31. Rxb6 {[%emt 0:00:02]} Qc7 {[%emt 0:00:23]} 32. Rfb1 {[%emt 0:00:06]} Nb3 {[%emt 0:00:01]} 33. Bxb3 {[%emt 0:00:04]} cxb3 {[%emt 0:00:01]} 34. R6xb3 {[%emt 0:00:02]} a5 {[%emt 0:00:05]} 35. Rxb7 {[%emt 0:00:07]} Qxb7 {[%emt 0:00:03]} 36. Rxb7 {[%emt 0:00:02]} Rxb7 {[%emt 0:00:01]} 37. h4 {[%emt 0:00:05]} Rb3 {[%emt 0:00:02]} 38. Qf2 {[%emt 0:00:05]} Rxa3 {[%emt 0:00:01]} 39. Qd2 {[%emt 0:00:10]} Ra1+ {[%emt 0:00:07]} 40. Kh2 {[%emt 0:00:01]} a4 {[%emt 0:00:03]} 41. d6 {[%emt 0:00:02]} a3 {[%emt 0:00:05]} 42. d7 {[%emt 0:00:01]} Rd8 {[%emt 0:00:01]} 43. Bb6 {[%emt 0:00:03]} a2 {[%emt 0:00:01]} 44. Bxd8 {[%emt 0:00:03]} Rh1+ {[%emt 0:00:01]} 45. Kxh1 {[%emt 0:00:01]} a1=Q+ {[%emt 0:00:01]} 46. Kh2 {[%emt 0:00:01]} Qf1 {[%emt 0:00:04]} 47. Be7 {[%emt 0:00:01]} h5 {[%emt 0:00:03]} 48. d8=Q+ {[%emt 0:00:02]} Kh7 {[%emt 0:00:00]} 49. Qe8 {[%emt 0:00:02]} Qf3 1-0

[Event "RUS-ch Men Blitz 2019"]
[Site "Sochi"]
[Date "2019.10.17"]
[Round "10.27"]
[White "Ulybin, Mikhail"]
[Black "Gurvich, Vitaly"]
[Result "0-1"]
[ECO "D80"]
[WhiteElo "2455"]
[BlackElo "2278"]
[Annotator "ChessBase"]
[PlyCount "146"]
[EventDate "2019.10.17"]
[EventType "swiss"]
[EventCountry "RUS"]
[SourceTitle "playchess.com"]
[Source "ChessBase"]
[SourceQuality "1"]
[TimeControl "180+2"]

1. d4 {[%emt 0:00:01]} Nf6 {[%emt 0:00:00]} 2. c4 {[%emt 0:00:03]} g6 {[%emt 0:00:00]} 3. Nc3 {[%emt 0:00:03]} d5 {[%emt 0:00:01]} 4. e3 {[%emt 0:00:03]} Bg7 {[%emt 0:00:02]} 5. cxd5 {[%emt 0:00:03]} Nxd5 {[%emt 0:00:00]} 6. Nxd5 {[%emt 0:00:03]} Qxd5 {[%emt 0:00:02]} 7. Ne2 {[%emt 0:00:02]} O-O {[%emt 0:00:07]} 8. Nc3 {[%emt 0:00:04]} Qd6 {[%emt 0:00:01]} 9. Be2 {[%emt 0:00:05]} c5 {[%emt 0:00:01]} 10. Ne4 {[%emt 0:00:07]} Qc6 {[%emt 0:00:01]} 11. Nxc5 {[%emt 0:00:13]} Qxg2 {[%emt 0:00:01]} 12. Bf3 {[%emt 0:00:03]} Qh3 {[%emt 0:00:01]} 13. Qe2 {[%emt 0:00:52]} Nc6 {[%emt 0:00:16]} 14. Bd2 {[%emt 0:00:16]} Bxd4 {[%emt 0:00:12]} 15. Bxc6 {[%emt 0:00:29]} Bxc5 {[%emt 0:00:00]} 16. Bf3 {[%emt 0:00:15]} Be6 {[%emt 0:00:15]} 17. Bc3 {[%emt 0:00:11]} Rab8 {[%emt 0:01:07]} 18. Rg1 {[%emt 0:00:15]} Bd6 {[%emt 0:00:06]} 19. Bg2 {[%emt 0:00:11]} Qh4 {[%emt 0:00:07]} 20. O-O-O {[%emt 0:00:09]} Qa4 {[%emt 0:00:06]} 21. b3 {[%emt 0:00:06]} Qa3+ {[%emt 0:00:50]} 22. Kb1 {[%emt 0:00:02]} Rfc8 {[%emt 0:00:07]} 23. Bb2 {[%emt 0:00:03]} Qc5 {[%emt 0:00:00]} 24. Rc1 {[%emt 0:00:04]} Qf5+ {[%emt 0:00:09]} 25. Ka1 {[%emt 0:00:03]} b6 {[%emt 0:00:06]} 26. f4 {[%emt 0:00:02]} Qa5 {[%emt 0:00:03]} 27. Qd3 {[%emt 0:00:02]} Rxc1+ {[%emt 0:00:04]} 28. Rxc1 {[%emt 0:00:01]} Rc8 {[%emt 0:00:00]} 29. Rxc8+ {[%emt 0:00:02]} Bxc8 {[%emt 0:00:01]} 30. Bc3 {[%emt 0:00:01]} Qc5 {[%emt 0:00:03]} 31. Qd4 {[%emt 0:00:04]} Qxd4 {[%emt 0:00:02]} 32. Bxd4 {[%emt 0:00:01]} f6 {[%emt 0:00:08]} 33. Kb2 {[%emt 0:00:02]} Kf7 {[%emt 0:00:01]} 34. Bf3 {[%emt 0:00:02]} Bd7 {[%emt 0:00:02]} 35. h4 {[%emt 0:00:03]} h5 {[%emt 0:00:02]} 36. Kc2 {[%emt 0:00:02]} Bf5+ {[%emt 0:00:01]} 37. Kd2 {[%emt 0:00:02]} e5 {[%emt 0:00:01]} 38. fxe5 {[%emt 0:00:01]} Bxe5 {[%emt 0:00:01]} 39. Bxe5 {[%emt 0:00:03]} fxe5 {[%emt 0:00:01]} 40. Kc3 {[%emt 0:00:01]} Be6 {[%emt 0:00:04]} 41. Kb4 {[%emt 0:00:03]} Bd7 {[%emt 0:00:03]} 42. Be4 {[%emt 0:00:02]} Kf6 {[%emt 0:00:02]} 43. Bf3 {[%emt 0:00:02]} g5 {[%emt 0:00:01]} 44. hxg5+ {[%emt 0:00:02]} Kxg5 {[%emt 0:00:00]} 45. Kc3 {[%emt 0:00:01]} h4 {[%emt 0:00:02]} 46. Kd2 {[%emt 0:00:01]} h3 {[%emt 0:00:02]} 47. Ke1 {[%emt 0:00:01]} Kh4 {[%emt 0:00:06]} 48. Kf2 {[%emt 0:00:02]} Be6 {[%emt 0:00:02]} 49. Bb7 {[%emt 0:00:02]} a5 {[%emt 0:00:01]} 50. Bc6 {[%emt 0:00:02]} Bf5 {[%emt 0:00:02]} 51. Bd5 {[%emt 0:00:02]} Bb1 {[%emt 0:00:02]} 52. a3 {[%emt 0:00:01]} e4 {[%emt 0:00:05]} 53. Be6 {[%emt 0:00:02]} Bc2 {[%emt 0:00:02]} 54. b4 {[%emt 0:00:01]} Bd3 {[%emt 0:00:02]} 55. Bf5 {[%emt 0:00:02]} h2 {[%emt 0:00:02]} 56. Kg2 {[%emt 0:00:01]} h1=Q+ {[%emt 0:00:00]} 57. Kxh1 {[%emt 0:00:01]} Kg3 {[%emt 0:00:01]} 58. Kg1 {[%emt 0:00:03]} Kf3 {[%emt 0:00:00]} 59. Bg6 {[%emt 0:00:07]} Kxe3 {[%emt 0:00:03]} 60. Kg2 {[%emt 0:00:01]} Kd2 {[%emt 0:00:02]} 61. bxa5 {[%emt 0:00:02]} bxa5 {[%emt 0:00:01]} 62. Kg3 {[%emt 0:00:04]} e3 {[%emt 0:00:01]} 63. Bh5 {[%emt 0:00:01]} Kc3 {[%emt 0:00:04]} 64. Kf4 {[%emt 0:00:01]} e2 {[%emt 0:00:00]} 65. Bxe2 {[%emt 0:00:02]} Bxe2 {[%emt 0:00:01]} 66. Ke3 {[%emt 0:00:00]} Bh5 {[%emt 0:00:01]} 67. Ke4 {[%emt 0:00:02]} Bf7 {[%emt 0:00:05]} 68. Ke3 {[%emt 0:00:02]} Bc4 {[%emt 0:00:04]} 69. Ke4 {[%emt 0:00:01]} a4 {[%emt 0:00:02]} 70. Ke3 {[%emt 0:00:02]} Kb2 {[%emt 0:00:05]} 71. Kd2 {[%emt 0:00:02]} Bb3 {[%emt 0:00:02]} 72. Kd3 {[%emt 0:00:02]} Kxa3 {[%emt 0:00:01]} 73. Kc3 {[%emt 0:00:01]} Ka2 {[%emt 0:00:01]} 0-1

[Event "RUS-ch Men Blitz 2019"]
[Site "Sochi"]
[Date "2019.10.17"]
[Round "10.28"]
[White "Kovalchuk, Alexey"]
[Black "Goltsev, Dmitry"]
[Result "0-1"]
[ECO "B40"]
[WhiteElo "2388"]
[BlackElo "2309"]
[Annotator "NA"]
[PlyCount "80"]
[EventDate "2019.10.17"]
[EventType "swiss"]
[EventCountry "RUS"]
[SourceTitle "playchess.com"]
[Source "ChessBase"]
[SourceQuality "1"]
[TimeControl "180+2"]

1. e4 {[%emt 0:00:00]} c5 {[%emt 0:00:00]} 2. Nf3 {[%emt 0:00:00]} e6 {[%emt 0:00:00]} 3. g3 {[%emt 0:00:01]} Nc6 {[%emt 0:00:00]} 4. Bg2 {[%emt 0:00:01]} d5 {[%emt 0:00:02]} 5. exd5 {[%emt 0:00:01]} exd5 {[%emt 0:00:01]} 6. d4 {[%emt 0:00:01]} Nf6 {[%emt 0:00:02]} 7. O-O {[%emt 0:00:01]} Be6 {[%emt 0:00:14]} 8. Nc3 {[%emt 0:00:04]} h6 {[%emt 0:00:04]} 9. Be3 {[%emt 0:00:23]} b6 {[%emt 0:00:14]} 10. Ne2 {[%emt 0:00:45]} Bd6 {[%emt 0:00:22]} 11. Nf4 {[%emt 0:00:02]} O-O {[%emt 0:00:14]} 12. Re1 {[%emt 0:00:07]} Re8 {[%emt 0:00:12]} 13. Nxe6 {[%emt 0:00:47]} fxe6 {[%emt 0:00:23]} 14. c3 {[%emt 0:00:25]} cxd4 {[%emt 0:00:10]} 15. cxd4 {[%emt 0:00:08]} Rc8 {[%emt 0:00:01]} 16. Qa4 {[%emt 0:00:12]} Qd7 {[%emt 0:00:06]} 17. Rac1 {[%emt 0:00:11]} Ne5 {[%emt 0:00:19]} 18. Qxd7 {[%emt 0:00:03]} Nexd7 {[%emt 0:00:01]} 19. Bf1 {[%emt 0:00:08]} Kf7 {[%emt 0:00:08]} 20. Ba6 {[%emt 0:00:01]} Rxc1 {[%emt 0:00:08]} 21. Rxc1 {[%emt 0:00:00]} Nb8 {[%emt 0:00:04]} 22. Bb5 {[%emt 0:00:01]} Rd8 {[%emt 0:00:16]} 23. Ne5+ {[%emt 0:00:01]} Ke7 {[%emt 0:00:04]} 24. Ng6+ {[%emt 0:00:14]} Kf7 {[%emt 0:00:03]} 25. Ne5+ {[%emt 0:00:01]} Ke7 {[%emt 0:00:01]} 26. h3 {[%emt 0:00:07]} a6 {[%emt 0:00:01]} 27. Bd3 {[%emt 0:00:04]} b5 {[%emt 0:00:06]} 28. Nc6+ {[%emt 0:00:03]} Kd7 {[%emt 0:00:02]} 29. Nxd8 {[%emt 0:00:01]} Kxd8 {[%emt 0:00:03]} 30. Kf1 {[%emt 0:00:02]} Kd7 {[%emt 0:00:08]} 31. Ke2 {[%emt 0:00:01]} Ng8 {[%emt 0:00:03]} 32. f4 {[%emt 0:00:01]} Ne7 {[%emt 0:00:01]} 33. g4 {[%emt 0:00:01]} Nbc6 {[%emt 0:00:04]} 34. Rf1 {[%emt 0:00:02]} Bc7 {[%emt 0:00:10]} 35. f5 {[%emt 0:00:01]} Bb6 {[%emt 0:00:02]} 36. f6 {[%emt 0:00:02]} gxf6 {[%emt 0:00:01]} 37. Rxf6 {[%emt 0:00:01]} Nxd4+ {[%emt 0:00:05]} 38. Bxd4 {[%emt 0:00:05]} Bxd4 {[%emt 0:00:01]} 39. Rxh6 {[%emt 0:00:02]} Bxb2 {[%emt 0:00:01]} 40. g5 {[%emt 0:00:02]} e5 {[%emt 0:00:03]} 0-1

[Event "RUS-ch Men Blitz 2019"]
[Site "Sochi"]
[Date "2019.10.17"]
[Round "10.29"]
[White "Ivlev, Aleksey"]
[Black "Belyakov, Bogdan"]
[Result "0-1"]
[ECO "E73"]
[WhiteElo "2292"]
[BlackElo "2495"]
[Annotator "ChessBase"]
[PlyCount "72"]
[EventDate "2019.10.17"]
[EventType "swiss"]
[EventCountry "RUS"]
[SourceTitle "playchess.com"]
[Source "ChessBase"]
[SourceQuality "1"]
[TimeControl "180+2"]

1. d4 {[%emt 0:00:00]} Nf6 {[%emt 0:00:00]} 2. c4 {[%emt 0:00:00]} g6 {[%emt 0:00:00]} 3. Nc3 {[%emt 0:00:01]} Bg7 {[%emt 0:00:00]} 4. e4 d6 5. Be2 {[%emt 0:00:02]} O-O {[%emt 0:00:02]} 6. Bg5 {[%emt 0:00:01]} h6 {[%emt 0:00:01]} 7. Be3 {[%emt 0:00:01]} c5 {[%emt 0:00:01]} 8. d5 {[%emt 0:00:02]} e6 {[%emt 0:00:01]} 9. dxe6 {[%emt 0:00:01]} Bxe6 {[%emt 0:00:01]} 10. h3 {[%emt 0:00:01]} Nc6 {[%emt 0:00:10]} 11. Nf3 {[%emt 0:00:02]} Na5 {[%emt 0:00:07]} 12. Nd2 {[%emt 0:00:04]} Nd7 {[%emt 0:00:05]} 13. Rc1 {[%emt 0:00:28]} Ne5 {[%emt 0:00:03]} 14. b3 {[%emt 0:00:00]} Nac6 {[%emt 0:00:01]} 15. O-O {[%emt 0:00:03]} Nd4 {[%emt 0:00:01]} 16. Nf3 {[%emt 0:00:17]} Nexf3+ {[%emt 0:00:06]} 17. Bxf3 {[%emt 0:00:01]} Rb8 {[%emt 0:00:03]} 18. Nb5 {[%emt 0:00:49]} Nxf3+ {[%emt 0:00:02]} 19. Qxf3 a6 20. Nc3 {[%emt 0:00:03]} b5 {[%emt 0:00:02]} 21. cxb5 {[%emt 0:00:04]} axb5 {[%emt 0:00:01]} 22. Rfd1 {[%emt 0:00:01]} Qa5 {[%emt 0:00:03]} 23. Nd5 {[%emt 0:00:49]} Bxd5 {[%emt 0:00:20]} 24. Rxd5 {[%emt 0:00:08]} Qxa2 {[%emt 0:00:03]} 25. Bf4 {[%emt 0:00:01]} c4 {[%emt 0:00:33]} 26. bxc4 {[%emt 0:00:06]} b4 {[%emt 0:00:01]} 27. Rd2 {[%emt 0:00:16]} Qa4 {[%emt 0:00:28]} 28. Rb1 {[%emt 0:00:12]} Rbc8 {[%emt 0:00:10]} 29. Bxd6 {[%emt 0:00:09]} Rfd8 {[%emt 0:00:01]} 30. Rxb4 {[%emt 0:00:08]} Qa5 {[%emt 0:00:10]} 31. Qb3 {[%emt 0:00:08]} Be5 {[%emt 0:00:19]} 32. c5 {[%emt 0:00:02]} Rxc5 {[%emt 0:00:24]} 33. Bxe5 {[%emt 0:00:03]} Rc1+ {[%emt 0:00:05]} 34. Kh2 {[%emt 0:00:05]} Qxe5+ {[%emt 0:00:02]} 35. g3 {[%emt 0:00:02]} Rxd2 {[%emt 0:00:02]} 36. Kg2 {[%emt 0:00:02]} Rcc2 {[%emt 0:00:02]} 0-1